[Event "23rd OIBM 2019"]
[Site "Gmund am Tegernsee"]
[Date "2019.11.03"]
[Round "9.34"]
[White "Soham Das"]
[Black "Ryzhkov, Vadim"]
[Result "1-0"]
[ECO "C00"]
[WhiteElo "2376"]
[BlackElo "2187"]
[Annotator "RC"]
[PlyCount "115"]
[EventDate "2019.10.17"]
[EventType "swiss"]
[EventCountry "GER"]
[SourceTitle "playchess.com"]
[Source "ChessBase"]
[SourceQuality "1"]
[TimeControl "40/5400+30:1800+30"]

1. e4 {[%emt 0:00:29]} e6 {[%emt 0:00:00]} 2. d3 {[%emt 0:00:20]} d5 {[%emt 0:00:00]} 3. Qe2 {[%emt 0:00:10]} Be7 {[%emt 0:00:14]} 4. Nf3 {[%emt 0:00:07]} b6 {[%emt 0:01:13]} 5. g3 {[%emt 0:02:09]} Bb7 {[%emt 0:00:54]} 6. Bg2 {[%emt 0:00:28]} Nf6 {[%emt 0:05:14]} 7. e5 {[%emt 0:03:22]} Nfd7 {[%emt 0:00:13]} 8. h4 {[%emt 0:01:01]} h6 {[%emt 0:02:28]} 9. O-O {[%emt 0:18:47]} c5 {[%emt 0:12:20]} 10. c4 {[%emt 0:07:53]} d4 {[%emt 0:00:40]} 11. Re1 {[%emt 0:02:03]} Qc7 {[%emt 0:09:57]} 12. Nbd2 {[%emt 0:16:02]} Nc6 {[%emt 0:00:25]} 13. Nf1 {[%emt 0:00:07]} Bf8 {[%emt 0:10:46]} 14. Bf4 {[%emt 0:10:09]} Ne7 {[%emt 0:05:01]} 15. N1h2 {[%emt 0:05:11]} Qc6 {[%emt 0:03:14]} 16. h5 {[%emt 0:01:23]} g6 {[%emt 0:06:38]} 17. Ng4 {[%emt 0:03:46]} O-O-O {[%emt 0:00:54]} 18. Nf6 {[%emt 0:06:00]} g5 {[%emt 0:04:31]} 19. Ne4 {[%emt 0:00:59]} Nf5 {[%emt 0:03:35]} 20. Bd2 {[%emt 0:05:38]} Kb8 {[%emt 0:02:22]} 21. b4 {[%emt 0:01:55]} g4 {[%emt 0:02:32]} 22. Nh2 {[%emt 0:00:12]} cxb4 {[%emt 0:00:22]} 23. Nxg4 {[%emt 0:00:08]} Be7 {[%emt 0:04:12]} 24. Reb1 {[%emt 0:03:35]} a5 {[%emt 0:06:07]} 25. Kh2 {[%emt 0:02:39]} Kc7 {[%emt 0:01:36]} 26. Bh1 {[%emt 0:01:16]} Qa4 {[%emt 0:01:32]} 27. a3 {[%emt 0:04:46]} bxa3 {[%emt 0:04:35]} 28. Bc1 {[%emt 0:00:04]} Bb4 {[%emt 0:00:47]} 29. Bxa3 {[%emt 0:02:22]} Bxa3 {[%emt 0:00:14]} 30. Qa2 {[%emt 0:00:12]} Rhg8 {[%emt 0:07:23]} 31. Bf3 {[%emt 0:01:16]} Rb8 {[%emt 0:01:31]} 32. Rb5 {[%emt 0:00:39]} Bc6 {[%emt 0:01:23]} 33. Bd1 {[%emt 0:00:40]} Qxd1 {[%emt 0:01:41]} 34. Rxd1 {[%emt 0:00:14]} Bxb5 {[%emt 0:00:10]} 35. cxb5 {[%emt 0:00:52]} Bc5 {[%emt 0:00:53]} 36. Ngf6 {[%emt 0:00:35]} Nxf6 {[%emt 0:00:49]} 37. Nxf6 {[%emt 0:00:15]} Rgc8 {[%emt 0:00:36]} 38. Rc1 {[%emt 0:00:28]} Kd8 {[%emt 0:00:44]} 39. g4 {[%emt 0:00:27]} Ne7 {[%emt 0:01:04]} 40. Qd2 {[%emt 0:00:25]} Bb4 {[%emt 0:00:25]} 41. Qxh6 {[%emt 0:30:05]} Rxc1 {[%emt 0:30:21]} 42. Qxc1 {[%emt 0:00:34]} Rc8 {[%emt 0:00:00]} 43. Qf4 {[%emt 0:00:00]} Bc5 {[%emt 0:00:00]} 44. Ne4 {[%emt 0:00:00]} a4 {[%emt 0:00:00]} 45. Qxf7 {[%emt 0:00:00]} a3 {[%emt 0:00:00]} 46. Qxe6 {[%emt 0:00:00]} Ra8 {[%emt 0:00:00]} 47. Qf7 {[%emt 0:00:00]} Kd7 {[%emt 0:00:00]} 48. Nf6+ {[%emt 0:00:00]} Kc8 {[%emt 0:00:00]} 49. Qe8+ {[%emt 0:00:00]} Kb7 {[%emt 0:00:00]} 50. Qd7+ {[%emt 0:00:00]} Kb8 {[%emt 0:00:00]} 51. h6 {[%emt 0:00:00]} Ra7 {[%emt 0:00:00]} 52. Qd8+ {[%emt 0:00:00]} Nc8 {[%emt 0:00:00]} 53. Nd7+ {[%emt 0:00:00]} Kb7 {[%emt 0:00:00]} 54. Nxc5+ {[%emt 0:00:00]} bxc5 {[%emt 0:00:00]} 55. h7 {[%emt 0:00:00]} a2 {[%emt 0:00:00]} 56. h8=Q {[%emt 0:00:00]} a1=Q {[%emt 0:00:00]} 57. Qd7+ {[%emt 0:00:00]} Kb6 {[%emt 0:00:00]} 58. Qhd8+ {[%emt 0:00:00]} 1-0

[Event "23rd OIBM 2019"]
[Site "Gmund am Tegernsee"]
[Date "2019.11.03"]
[Round "9.41"]
[White "De Ruijter, Luuk"]
[Black "Seemann, Jakub"]
[Result "1-0"]
[ECO "A49"]
[WhiteElo "2214"]
[BlackElo "1967"]
[Annotator "ChessBase"]
[PlyCount "71"]
[EventDate "2019.10.17"]
[EventType "swiss"]
[EventCountry "GER"]
[SourceTitle "playchess.com"]
[Source "ChessBase"]
[SourceQuality "1"]
[TimeControl "40/5400+30:1800+30"]

1. d4 {[%emt 0:00:00]} Nf6 {[%emt 0:00:00]} 2. Nf3 {[%emt 0:00:00]} g6 {[%emt 0:00:00]} 3. g3 {[%emt 0:00:08]} Bg7 {[%emt 0:00:04]} 4. Bg2 {[%emt 0:00:14]} O-O {[%emt 0:00:10]} 5. O-O {[%emt 0:00:17]} d6 {[%emt 0:00:08]} 6. b3 {[%emt 0:00:18]} Nbd7 {[%emt 0:00:48]} 7. Bb2 {[%emt 0:00:51]} Ne4 {[%emt 0:01:40]} 8. Nbd2 {[%emt 0:00:50]} Nxd2 {[%emt 0:00:31]} 9. Qxd2 {[%emt 0:00:14]} Nf6 {[%emt 0:01:09]} 10. c4 {[%emt 0:00:33]} Ne4 {[%emt 0:01:30]} 11. Qe3 {[%emt 0:01:42]} f5 {[%emt 0:00:56]} 12. Nd2 {[%emt 0:07:57]} Nf6 {[%emt 0:05:51]} 13. Qd3 {[%emt 0:01:24]} e6 {[%emt 0:09:34]} 14. Rad1 {[%emt 0:01:56]} d5 {[%emt 0:01:25]} 15. Qc2 {[%emt 0:00:28]} Qe7 {[%emt 0:01:41]} 16. Nf3 {[%emt 0:01:32]} c6 {[%emt 0:12:27]} 17. Ne5 {[%emt 0:00:52]} Nd7 {[%emt 0:00:36]} 18. f4 {[%emt 0:02:14]} Nf6 {[%emt 0:03:29]} 19. Qc1 {[%emt 0:03:20]} Re8 {[%emt 0:01:56]} 20. e3 {[%emt 0:00:26]} Ne4 {[%emt 0:00:48]} 21. Bxe4 {[%emt 0:00:24]} fxe4 {[%emt 0:00:32]} 22. Ba3 {[%emt 0:00:41]} Qd8 {[%emt 0:00:42]} 23. Qc2 {[%emt 0:01:02]} Bd7 {[%emt 0:04:44]} 24. Bd6 {[%emt 0:00:31]} Bf6 {[%emt 0:07:48]} 25. Qe2 {[%emt 0:00:42]} b5 {[%emt 0:02:57]} 26. Rc1 {[%emt 0:02:44]} Bc8 {[%emt 0:01:47]} 27. c5 {[%emt 0:01:26]} Bb7 {[%emt 0:00:18]} 28. h4 {[%emt 0:00:40]} Be7 {[%emt 0:05:27]} 29. h5 {[%emt 0:00:19]} Bxd6 {[%emt 0:00:33]} 30. cxd6 {[%emt 0:00:10]} Qxd6 {[%emt 0:01:02]} 31. hxg6 {[%emt 0:00:32]} Re7 {[%emt 0:02:23]} 32. Kg2 {[%emt 0:00:36]} hxg6 {[%emt 0:01:32]} 33. Rh1 {[%emt 0:00:46]} Rg7 {[%emt 0:00:50]} 34. Rh6 {[%emt 0:00:39]} Kf8 {[%emt 0:02:14]} 35. Qg4 {[%emt 0:00:48]} Ke7 {[%emt 0:01:43]} 36. Qg5+ {[%emt 0:00:18]} 1-0

[Event "23rd OIBM 2019"]
[Site "Gmund am Tegernsee"]
[Date "2019.11.03"]
[Round "9.43"]
[White "Dobrikov, Marco"]
[Black "Juergens, Klaus"]
[Result "1-0"]
[ECO "B61"]
[WhiteElo "2291"]
[BlackElo "2121"]
[Annotator "ChessBase"]
[PlyCount "101"]
[EventDate "2019.10.17"]
[EventType "swiss"]
[EventCountry "GER"]
[SourceTitle "playchess.com"]
[Source "ChessBase"]
[SourceQuality "1"]
[TimeControl "40/5400+30:1800+30"]

1. e4 {[%emt 0:00:00]} c5 {[%emt 0:00:00]} 2. Nf3 {[%emt 0:00:00]} Nc6 {[%emt 0:00:00]} 3. d4 {[%emt 0:00:00]} cxd4 {[%emt 0:00:04]} 4. Nxd4 {[%emt 0:00:00]} Nf6 {[%emt 0:00:26]} 5. Nc3 {[%emt 0:00:00]} d6 {[%emt 0:00:12]} 6. Bg5 {[%emt 0:00:05]} Bd7 {[%emt 0:00:24]} 7. Qd2 {[%emt 0:01:43]} Rc8 {[%emt 0:04:01]} 8. O-O-O {[%emt 0:00:25]} Nxd4 {[%emt 0:00:22]} 9. Qxd4 {[%emt 0:00:29]} Qa5 {[%emt 0:00:09]} 10. f4 {[%emt 0:06:26]} Rxc3 {[%emt 0:07:40]} 11. bxc3 {[%emt 0:02:05]} e5 {[%emt 0:01:07]} 12. Qb4 {[%emt 0:10:50]} Qxb4 {[%emt 0:01:01]} 13. cxb4 {[%emt 0:00:01]} Nxe4 {[%emt 0:00:18]} 14. Bh4 {[%emt 0:00:29]} g5 {[%emt 0:06:04]} 15. fxg5 {[%emt 0:06:40]} Be7 {[%emt 0:00:45]} 16. Bc4 {[%emt 0:02:21]} h6 {[%emt 0:11:15]} 17. Rhf1 {[%emt 0:02:21]} O-O {[%emt 0:11:24]} 18. Rde1 {[%emt 0:11:29]} hxg5 {[%emt 0:05:43]} 19. Rxe4 {[%emt 0:00:03]} gxh4 {[%emt 0:00:08]} 20. Bd5 {[%emt 0:00:09]} Kg7 {[%emt 0:04:31]} 21. Rf3 {[%emt 0:04:46]} Bg5+ {[%emt 0:07:29]} 22. Kb2 {[%emt 0:03:03]} f5 {[%emt 0:03:39]} 23. Rc4 {[%emt 0:00:03]} e4 {[%emt 0:01:19]} 24. Rc7 {[%emt 0:03:18]} exf3 {[%emt 0:14:40]} 25. Rxd7+ {[%emt 0:00:02]} Kf6 {[%emt 0:00:14]} 26. Bxf3 {[%emt 0:00:30]} Bf4 {[%emt 0:04:42]} 27. h3 {[%emt 0:00:15]} Rf7 {[%emt 0:01:08]} 28. Rxf7+ {[%emt 0:00:23]} Kxf7 {[%emt 0:00:02]} 29. Bxb7 {[%emt 0:00:02]} Ke6 {[%emt 0:00:42]} 30. c4 {[%emt 0:00:48]} Kd7 {[%emt 0:02:55]} 31. Bd5 {[%emt 0:01:27]} Be3 {[%emt 0:00:21]} 32. Kc3 {[%emt 0:02:51]} Bf2 {[%emt 0:00:31]} 33. Kb3 {[%emt 0:01:48]} Be1 {[%emt 0:00:28]} 34. Ka4 {[%emt 0:00:10]} Kc7 {[%emt 0:00:44]} 35. Kb5 {[%emt 0:01:25]} Bd2 {[%emt 0:00:34]} 36. g3 {[%emt 0:04:25]} hxg3 {[%emt 0:03:38]} 37. h4 {[%emt 0:01:50]} Be3 {[%emt 0:04:04]} 38. h5 {[%emt 0:00:18]} Bd2 {[%emt 0:00:36]} 39. c5 {[%emt 0:00:43]} a5 {[%emt 0:02:29]} 40. c6 {[%emt 0:01:40]} axb4 {[%emt 0:00:54]} 41. Kc4 {[%emt 0:30:09]} Kb6 {[%emt 0:31:42]} 42. Kd3 {[%emt 0:00:58]} Bf4 {[%emt 0:00:00]} 43. Ke2 {[%emt 0:00:00]} Bg5 {[%emt 0:00:00]} 44. Kf3 {[%emt 0:00:00]} Kc7 {[%emt 0:00:00]} 45. Kxg3 {[%emt 0:00:00]} Kb6 {[%emt 0:00:00]} 46. Kf3 {[%emt 0:00:00]} b3 {[%emt 0:00:00]} 47. axb3 {[%emt 0:00:00]} Bh6 {[%emt 0:00:00]} 48. Ke2 {[%emt 0:00:00]} Bf4 {[%emt 0:00:00]} 49. Kd3 {[%emt 0:00:00]} Kc7 {[%emt 0:00:00]} 50. Kc4 {[%emt 0:00:00]} Kb6 {[%emt 0:00:00]} 51. Bf3 {[%emt 0:00:00]} 1-0

[Event "23rd OIBM 2019"]
[Site "Gmund am Tegernsee"]
[Date "2019.11.03"]
[Round "9.44"]
[White "Szabo, Marton Mihaly"]
[Black "Karpa, Adrian"]
[Result "1-0"]
[ECO "B20"]
[WhiteElo "2282"]
[BlackElo "2087"]
[Annotator "ChessBase"]
[PlyCount "59"]
[EventDate "2019.10.17"]
[EventType "swiss"]
[EventCountry "GER"]
[SourceTitle "playchess.com"]
[Source "ChessBase"]
[SourceQuality "1"]
[TimeControl "40/5400+30:1800+30"]

1. e4 {[%emt 0:00:14]} c5 {[%emt 0:00:00]} 2. Be2 {[%emt 0:00:18]} e6 {[%emt 0:02:13]} 3. f4 {[%emt 0:01:03]} d5 {[%emt 0:00:22]} 4. d3 {[%emt 0:00:10]} Nf6 {[%emt 0:01:52]} 5. e5 {[%emt 0:00:09]} Nfd7 {[%emt 0:00:10]} 6. Nf3 {[%emt 0:00:15]} Nc6 {[%emt 0:08:41]} 7. O-O {[%emt 0:01:05]} b5 {[%emt 0:00:12]} 8. a4 {[%emt 0:03:19]} bxa4 {[%emt 0:01:56]} 9. Rxa4 {[%emt 0:02:21]} Nb6 {[%emt 0:00:52]} 10. Ra1 {[%emt 0:00:40]} a5 {[%emt 0:01:58]} 11. Kh1 {[%emt 0:04:02]} Be7 {[%emt 0:01:31]} 12. d4 {[%emt 0:01:20]} O-O {[%emt 0:00:34]} 13. Be3 {[%emt 0:04:36]} Ba6 {[%emt 0:04:24]} 14. dxc5 {[%emt 0:11:47]} Nd7 {[%emt 0:03:59]} 15. Bxa6 {[%emt 0:05:30]} Rxa6 {[%emt 0:02:15]} 16. Qe2 {[%emt 0:03:24]} Qa8 {[%emt 0:01:03]} 17. Qf2 {[%emt 0:09:54]} Rb8 {[%emt 0:15:57]} 18. Nc3 {[%emt 0:07:06]} a4 {[%emt 0:06:13]} 19. f5 {[%emt 0:01:38]} Qa7 {[%emt 0:10:44]} 20. Qg3 {[%emt 0:20:08]} Kh8 {[%emt 0:15:52]} 21. f6 {[%emt 0:08:03]} Nxf6 {[%emt 0:09:06]} 22. exf6 {[%emt 0:01:06]} Bxf6 {[%emt 0:00:21]} 23. Bg5 {[%emt 0:02:34]} Rxb2 {[%emt 0:02:08]} 24. Bxf6 {[%emt 0:02:23]} gxf6 {[%emt 0:00:09]} 25. Qf4 {[%emt 0:08:01]} Rxc2 {[%emt 0:00:39]} 26. Qxf6+ {[%emt 0:00:28]} Kg8 {[%emt 0:00:06]} 27. Ng5 {[%emt 0:00:46]} Qe7 {[%emt 0:01:44]} 28. Qh6 {[%emt 0:00:37]} f5 {[%emt 0:00:49]} 29. Nxd5 {[%emt 0:00:54]} exd5 {[%emt 0:02:47]} 30. Rxf5 {[%emt 0:00:17]} 1-0